[Event "Early-Titled-Tuesday-Blitz-April-02-2024"]
[Site "Chess.com"]
[Date "2024.04.02"]
[Round "10"]
[White "ChainedDowntohell"]
[Black "Meri-Arabidze"]
[Result "0-1"]
[WhiteElo "2573"]
[BlackElo "2696"]
[TimeControl "180+1"]
[EndTime "9:56:50 PDT"]
[Termination "Meri-Arabidze won on time"]

1. d4 {[%clk 0:03:00.9]} 1... Nf6 {[%clk 0:02:59.7]} 2. c4 {[%clk 0:03:00.7]}
2... e6 {[%clk 0:03:00.1]} 3. Nc3 {[%clk 0:03:00.4]} 3... Bb4 {[%clk 0:03:00.3]}
4. Qc2 {[%clk 0:03:00.6]} 4... O-O {[%clk 0:03:00.2]} 5. Nf3 {[%clk 0:02:59]}
5... b6 {[%clk 0:02:59.8]} 6. Bg5 {[%clk 0:02:56.2]} 6... Bb7 {[%clk 0:02:59]}
7. e3 {[%clk 0:02:51.9]} 7... h6 {[%clk 0:02:58.2]} 8. Bh4 {[%clk 0:02:51.8]}
8... d6 {[%clk 0:02:55.2]} 9. Bd3 {[%clk 0:02:50.9]} 9... Nbd7 {[%clk
0:02:55.1]} 10. O-O-O {[%clk 0:02:44.1]} 10... Bxc3 {[%clk 0:02:45.4]} 11. Qxc3
{[%clk 0:02:41.2]} 11... c5 {[%clk 0:02:45.7]} 12. dxc5 {[%clk 0:02:38.9]} 12...
Nxc5 {[%clk 0:02:37]} 13. Bc2 {[%clk 0:02:39.1]} 13... Rc8 {[%clk 0:02:19.7]}
14. Qd4 {[%clk 0:02:34.7]} 14... d5 {[%clk 0:02:15.3]} 15. Kb1 {[%clk
0:02:30.2]} 15... dxc4 {[%clk 0:02:06.3]} 16. Qxc4 {[%clk 0:02:27.2]} 16... Qe7
{[%clk 0:01:54.5]} 17. Qf4 {[%clk 0:02:22.1]} 17... Rfd8 {[%clk 0:01:40.8]} 18.
Ne5 {[%clk 0:02:20.2]} 18... Rxd1+ {[%clk 0:01:02]} 19. Rxd1 {[%clk 0:02:21.1]}
19... Rd8 {[%clk 0:01:02.5]} 20. Rxd8+ {[%clk 0:01:42.3]} 20... Qxd8 {[%clk
0:01:03.4]} 21. Ng4 {[%clk 0:01:37.7]} 21... Ncd7 {[%clk 0:01:02.9]} 22. Qd6
{[%clk 0:01:32.8]} 22... Qf8 {[%clk 0:00:54.3]} 23. Qc7 {[%clk 0:01:16.6]} 23...
Bxg2 {[%clk 0:00:53.7]} 24. Nxf6+ {[%clk 0:00:30.5]} 24... Nxf6 {[%clk
0:00:54.6]} 25. Qg3 {[%clk 0:00:28.8]} 25... Qb4 {[%clk 0:00:32.9]} 26. f3
{[%clk 0:00:15.9]} 26... g5 {[%clk 0:00:15.7]} 27. Bxg5 {[%clk 0:00:14.1]} 27...
hxg5 {[%clk 0:00:16.3]} 28. a3 {[%clk 0:00:06.2]} 28... Qh4 {[%clk 0:00:09.5]}
29. Qxg2 {[%clk 0:00:06]} 29... Nd5 {[%clk 0:00:09.3]} 30. Qd2 {[%clk
0:00:04.8]} 30... Kg7 {[%clk 0:00:03.4]} 31. Bd1 {[%clk 0:00:03.1]} 31... Qh5
{[%clk 0:00:02]} 32. f4 {[%clk 0:00:02.4]} 32... Qh6 {[%clk 0:00:02.2]} 33. fxg5
{[%clk 0:00:02.1]} 33... Qxg5 {[%clk 0:00:02.6]} 34. Bc2 {[%clk 0:00:01.8]}
34... Qf6 {[%clk 0:00:03.2]} 35. e4 {[%clk 0:00:02]} 35... Nf4 {[%clk
0:00:02.9]} 36. Qe3 {[%clk 0:00:02.6]} 36... e5 {[%clk 0:00:02.5]} 37. Qg3+
{[%clk 0:00:02.9]} 37... Qg6 {[%clk 0:00:03]} 38. Qf3 {[%clk 0:00:03.3]} 38...
Qf6 {[%clk 0:00:03.2]} 39. Ka2 {[%clk 0:00:03.8]} 39... Qg6 {[%clk 0:00:03.2]}
40. Bb3 {[%clk 0:00:03.2]} 40... Qg2 {[%clk 0:00:03.4]} 41. Qc3 {[%clk
0:00:02.1]} 41... Qxh2 {[%clk 0:00:03.2]} 42. Qxe5+ {[%clk 0:00:02.3]} 42... Kg6
{[%clk 0:00:03]} 43. Qf5+ {[%clk 0:00:02.2]} 43... Kh6 {[%clk 0:00:03.5]} 44.
Qxf7 {[%clk 0:00:01.9]} 44... Qg3 {[%clk 0:00:03.9]} 45. Qf6+ {[%clk 0:00:02.2]}
45... Kh5 {[%clk 0:00:03.9]} 0-1

[Event "Early-Titled-Tuesday-Blitz-April-02-2024"]
[Site "Chess.com"]
[Date "2024.04.02"]
[Round "10"]
[White "Zhigalko_Sergei"]
[Black "Rud_Makarian"]
[Result "0-1"]
[WhiteElo "2891"]
[BlackElo "3034"]
[TimeControl "180+1"]
[EndTime "9:56:51 PDT"]
[Termination "Rud_Makarian won on time"]

1. e4 {[%clk 0:03:00.9]} 1... c5 {[%clk 0:03:00.3]} 2. Nf3 {[%clk 0:03:01]} 2...
d6 {[%clk 0:03:00.9]} 3. d4 {[%clk 0:03:01.3]} 3... cxd4 {[%clk 0:03:01.8]} 4.
Qxd4 {[%clk 0:02:59.7]} 4... Nf6 {[%clk 0:03:02.3]} 5. Nc3 {[%clk 0:02:59.7]}
5... Nc6 {[%clk 0:03:02.2]} 6. Bb5 {[%clk 0:02:59.6]} 6... Bd7 {[%clk
0:03:02.9]} 7. Bxc6 {[%clk 0:03:00.2]} 7... Bxc6 {[%clk 0:03:03.8]} 8. Bg5
{[%clk 0:03:00.2]} 8... e6 {[%clk 0:03:04.1]} 9. O-O-O {[%clk 0:03:00.1]} 9...
Be7 {[%clk 0:03:04.8]} 10. Rhe1 {[%clk 0:03:00.7]} 10... O-O {[%clk 0:03:04.7]}
11. Kb1 {[%clk 0:03:01.2]} 11... a6 {[%clk 0:02:45.5]} 12. Qd2 {[%clk
0:02:44.8]} 12... b5 {[%clk 0:02:35.4]} 13. Nd4 {[%clk 0:02:10.8]} 13... Bb7
{[%clk 0:02:32.5]} 14. Bxf6 {[%clk 0:01:48]} 14... Bxf6 {[%clk 0:02:32.4]} 15.
f3 {[%clk 0:01:48.4]} 15... Rc8 {[%clk 0:02:30.8]} 16. g4 {[%clk 0:01:43.8]}
16... Qb6 {[%clk 0:02:09.7]} 17. g5 {[%clk 0:01:39.6]} 17... Be7 {[%clk
0:02:10.3]} 18. h4 {[%clk 0:01:36.2]} 18... Rc5 {[%clk 0:02:07]} 19. f4 {[%clk
0:01:20.7]} 19... Rfc8 {[%clk 0:02:06.9]} 20. h5 {[%clk 0:01:20.9]} 20... Rc4
{[%clk 0:02:01.9]} 21. g6 {[%clk 0:01:00.9]} 21... Qc7 {[%clk 0:01:42.4]} 22.
gxf7+ {[%clk 0:00:55.9]} 22... Kxf7 {[%clk 0:01:43.3]} 23. f5 {[%clk 0:00:52.4]}
23... Bf6 {[%clk 0:01:21.1]} 24. Nxe6 {[%clk 0:00:43.8]} 24... Qe7 {[%clk
0:01:07.7]} 25. Qxd6 {[%clk 0:00:31.4]} 25... b4 {[%clk 0:00:57]} 26. Qxe7+
{[%clk 0:00:24.6]} 26... Kxe7 {[%clk 0:00:56.1]} 27. Nd5+ {[%clk 0:00:09.3]}
27... Bxd5 {[%clk 0:00:56.4]} 28. exd5 {[%clk 0:00:10.2]} 28... Kd6 {[%clk
0:00:54.8]} 29. Re2 {[%clk 0:00:08.9]} 29... Rh4 {[%clk 0:00:53]} 30. a3 {[%clk
0:00:03.7]} 30... bxa3 {[%clk 0:00:48.5]} 31. b3 {[%clk 0:00:03.4]} 31... Rxh5
{[%clk 0:00:43.8]} 32. Ka2 {[%clk 0:00:02.9]} 32... Rxf5 {[%clk 0:00:40.8]} 33.
c4 {[%clk 0:00:03.5]} 33... h5 {[%clk 0:00:23.1]} 34. c5+ {[%clk 0:00:03.1]}
34... Kd7 {[%clk 0:00:23.8]} 35. d6 {[%clk 0:00:02.4]} 35... h4 {[%clk
0:00:21.8]} 36. b4 {[%clk 0:00:02.4]} 36... a5 {[%clk 0:00:15.6]} 37. Nxg7
{[%clk 0:00:02.6]} 37... Bxg7 {[%clk 0:00:12.2]} 38. Re7+ {[%clk 0:00:02.7]}
38... Kc6 {[%clk 0:00:12.9]} 39. Rxg7 {[%clk 0:00:02.3]} 39... axb4 {[%clk
0:00:13.6]} 40. d7 {[%clk 0:00:01.3]} 40... Rd8 {[%clk 0:00:13.9]} 41. Kb3
{[%clk 0:00:01.9]} 41... Kxc5 {[%clk 0:00:09.6]} 42. Re7 {[%clk 0:00:02]} 42...
Rf3+ {[%clk 0:00:09]} 43. Ka2 {[%clk 0:00:02.3]} 43... Rf2+ {[%clk 0:00:09.3]}
44. Ka1 {[%clk 0:00:01.9]} 44... b3 {[%clk 0:00:09.8]} 45. Rc1+ {[%clk
0:00:01.9]} 45... Kd6 {[%clk 0:00:09.7]} 0-1

[Event "Early-Titled-Tuesday-Blitz-April-02-2024"]
[Site "Chess.com"]
[Date "2024.04.02"]
[Round "10"]
[White "ChessFighter_2011"]
[Black "MyDream003"]
[Result "0-1"]
[WhiteElo "2912"]
[BlackElo "2862"]
[TimeControl "180+1"]
[EndTime "9:56:51 PDT"]
[Termination "MyDream003 won on time"]

1. e4 {[%clk 0:03:00.9]} 1... c6 {[%clk 0:02:55.9]} 2. d4 {[%clk 0:03:00.5]}
2... d5 {[%clk 0:02:56]} 3. e5 {[%clk 0:03:01.2]} 3... Bf5 {[%clk 0:02:55.8]} 4.
g4 {[%clk 0:03:01.4]} 4... Bd7 {[%clk 0:02:51.6]} 5. Nc3 {[%clk 0:03:01.5]} 5...
e6 {[%clk 0:02:50.8]} 6. Be3 {[%clk 0:03:01]} 6... Ne7 {[%clk 0:02:46]} 7. Qd2
{[%clk 0:02:59.2]} 7... h5 {[%clk 0:02:39.4]} 8. gxh5 {[%clk 0:02:59.1]} 8...
Rxh5 {[%clk 0:02:37.5]} 9. O-O-O {[%clk 0:02:59.2]} 9... Nf5 {[%clk 0:02:37]}
10. Nge2 {[%clk 0:02:59.4]} 10... c5 {[%clk 0:02:25.3]} 11. f4 {[%clk
0:02:24.1]} 11... Nc6 {[%clk 0:02:19.9]} 12. Bf2 {[%clk 0:02:22]} 12... Ncxd4
{[%clk 0:02:13.1]} 13. Nxd4 {[%clk 0:02:19]} 13... Nxd4 {[%clk 0:02:14]} 14. Be2
{[%clk 0:02:07.8]} 14... Nxe2+ {[%clk 0:02:04.6]} 15. Nxe2 {[%clk 0:02:06.4]}
15... d4 {[%clk 0:01:43.4]} 16. Ng3 {[%clk 0:02:05.7]} 16... Rh3 {[%clk
0:01:36.9]} 17. Qe2 {[%clk 0:02:00.2]} 17... Bc6 {[%clk 0:01:35.8]} 18. Rhe1
{[%clk 0:01:44.6]} 18... Qd5 {[%clk 0:01:30.6]} 19. Kb1 {[%clk 0:01:33.5]} 19...
Qf3 {[%clk 0:01:30.2]} 20. Qxf3 {[%clk 0:01:17.9]} 20... Bxf3 {[%clk 0:01:31.1]}
21. Rd3 {[%clk 0:01:18.2]} 21... Bd5 {[%clk 0:01:27.2]} 22. Bg1 {[%clk
0:01:18.4]} 22... Be7 {[%clk 0:01:18.9]} 23. c3 {[%clk 0:01:18.2]} 23... dxc3
{[%clk 0:01:18.4]} 24. Rxc3 {[%clk 0:01:19.1]} 24... c4 {[%clk 0:01:15]} 25. a3
{[%clk 0:01:15.5]} 25... b5 {[%clk 0:01:14.6]} 26. Rd1 {[%clk 0:01:03.4]} 26...
g6 {[%clk 0:01:10.9]} 27. Ka1 {[%clk 0:00:50.4]} 27... a5 {[%clk 0:01:09.9]} 28.
Re3 {[%clk 0:00:46.8]} 28... b4 {[%clk 0:01:03.3]} 29. f5 {[%clk 0:00:36]} 29...
Bc5 {[%clk 0:00:53.1]} 30. fxg6 {[%clk 0:00:21.9]} 30... fxg6 {[%clk 0:00:45.8]}
31. Re2 {[%clk 0:00:11.5]} 31... Be7 {[%clk 0:00:41.6]} 32. Re3 {[%clk 0:00:08]}
32... bxa3 {[%clk 0:00:34.3]} 33. bxa3 {[%clk 0:00:08.9]} 33... Rb8 {[%clk
0:00:34.7]} 34. Rc3 {[%clk 0:00:08.4]} 34... Rb3 {[%clk 0:00:31.8]} 35. Rxb3
{[%clk 0:00:07.4]} 35... cxb3 {[%clk 0:00:32.7]} 36. Kb2 {[%clk 0:00:08.3]}
36... Rh4 {[%clk 0:00:31.6]} 37. Rd4 {[%clk 0:00:08.5]} 37... Rxd4 {[%clk
0:00:15.2]} 38. Bxd4 {[%clk 0:00:09.4]} 38... Kd7 {[%clk 0:00:13.9]} 39. a4
{[%clk 0:00:10.3]} 39... Kc6 {[%clk 0:00:12]} 40. Ne2 {[%clk 0:00:10.8]} 40...
Bc4 {[%clk 0:00:11.5]} 41. Nf4 {[%clk 0:00:10.7]} 41... g5 {[%clk 0:00:10.5]}
42. Ng6 {[%clk 0:00:11.3]} 42... Bb4 {[%clk 0:00:06.2]} 0-1

[Event "Early-Titled-Tuesday-Blitz-April-02-2024"]
[Site "Chess.com"]
[Date "2024.04.02"]
[Round "10"]
[White "PavelShkapenko"]
[Black "ReadySkate"]
[Result "1-0"]
[WhiteElo "2717"]
[BlackElo "2608"]
[TimeControl "180+1"]
[EndTime "9:56:54 PDT"]
[Termination "PavelShkapenko won by checkmate"]

1. e4 {[%clk 0:03:00.9]} 1... c5 {[%clk 0:02:59.7]} 2. Nc3 {[%clk 0:02:58.5]}
2... d6 {[%clk 0:02:59.9]} 3. g3 {[%clk 0:02:58.4]} 3... Nc6 {[%clk 0:02:59.5]}
4. Bg2 {[%clk 0:02:58.6]} 4... e6 {[%clk 0:03:00.2]} 5. d3 {[%clk 0:02:56.5]}
5... Nf6 {[%clk 0:03:00.4]} 6. Nge2 {[%clk 0:02:45.7]} 6... Be7 {[%clk
0:03:00.8]} 7. O-O {[%clk 0:02:45.9]} 7... O-O {[%clk 0:03:01]} 8. h3 {[%clk
0:02:40.6]} 8... Re8 {[%clk 0:03:00.8]} 9. f4 {[%clk 0:02:40.4]} 9... d5 {[%clk
0:03:00.4]} 10. e5 {[%clk 0:02:14.9]} 10... Nd7 {[%clk 0:02:58.7]} 11. g4 {[%clk
0:02:15.5]} 11... f6 {[%clk 0:02:58]} 12. exf6 {[%clk 0:02:05.9]} 12... Nxf6
{[%clk 0:02:58.9]} 13. g5 {[%clk 0:01:56.1]} 13... Nd7 {[%clk 0:02:55.6]} 14.
Ng3 {[%clk 0:01:49.7]} 14... Nf8 {[%clk 0:02:53.2]} 15. h4 {[%clk 0:01:48.9]}
15... Nd4 {[%clk 0:02:52.6]} 16. Nce2 {[%clk 0:01:32.1]} 16... Nxe2+ {[%clk
0:02:49]} 17. Qxe2 {[%clk 0:01:31.7]} 17... Bd6 {[%clk 0:02:48.1]} 18. h5 {[%clk
0:01:18.8]} 18... Bd7 {[%clk 0:02:35.9]} 19. Bd2 {[%clk 0:01:19.1]} 19... Bc6
{[%clk 0:02:35.1]} 20. Qg4 {[%clk 0:01:06.6]} 20... Qd7 {[%clk 0:02:28.7]} 21.
f5 {[%clk 0:01:02.2]} 21... exf5 {[%clk 0:02:15.1]} 22. Nxf5 {[%clk 0:01:02.4]}
22... Be5 {[%clk 0:02:10]} 23. c3 {[%clk 0:00:56.7]} 23... d4 {[%clk 0:02:08.7]}
24. c4 {[%clk 0:00:44.7]} 24... Bxg2 {[%clk 0:02:05]} 25. Nh6+ {[%clk
0:00:28.4]} 25... gxh6 {[%clk 0:02:03.7]} 26. Rxf8+ {[%clk 0:00:28.9]} 26...
Kxf8 {[%clk 0:01:55.3]} 27. Qxd7 {[%clk 0:00:29]} 27... Bc6 {[%clk 0:01:53]} 28.
Qxh7 {[%clk 0:00:27.3]} 28... Re7 {[%clk 0:01:19.9]} 29. Qf5+ {[%clk 0:00:26]}
29... Kg8 {[%clk 0:01:17.5]} 30. Re1 {[%clk 0:00:22.1]} 30... Rf8 {[%clk
0:01:16.1]} 31. Qg6+ {[%clk 0:00:16]} 31... Kh8 {[%clk 0:01:14.2]} 32. Qxh6+
{[%clk 0:00:15.8]} 32... Kg8 {[%clk 0:01:14.6]} 33. Qg6+ {[%clk 0:00:16.2]}
33... Kh8 {[%clk 0:01:13.1]} 34. h6 {[%clk 0:00:16.2]} 34... Rg8 {[%clk
0:01:11.6]} 35. Qh5 {[%clk 0:00:15.7]} 35... Re6 {[%clk 0:01:08.6]} 36. Qh4
{[%clk 0:00:06.6]} 36... Rgg6 {[%clk 0:01:05.6]} 37. Bf4 {[%clk 0:00:04.4]}
37... Bxf4 {[%clk 0:00:56.2]} 38. Rxe6 {[%clk 0:00:04.4]} 38... Be3+ {[%clk
0:00:56.9]} 39. Rxe3 {[%clk 0:00:03.6]} 39... dxe3 {[%clk 0:00:57.8]} 40. Qf4
{[%clk 0:00:03.8]} 40... e2 {[%clk 0:00:49.6]} 41. Kf2 {[%clk 0:00:03.8]} 41...
Rg8 {[%clk 0:00:43.9]} 42. Kxe2 {[%clk 0:00:02.9]} 42... Be8 {[%clk 0:00:43.2]}
43. Kd2 {[%clk 0:00:02.9]} 43... Bg6 {[%clk 0:00:42.7]} 44. Qe5+ {[%clk
0:00:03.5]} 44... Kh7 {[%clk 0:00:42.5]} 45. Qxc5 {[%clk 0:00:03.9]} 45... Kh8
{[%clk 0:00:32.9]} 46. Qe5+ {[%clk 0:00:03.7]} 46... Kh7 {[%clk 0:00:32.9]} 47.
Qc7+ {[%clk 0:00:04.3]} 47... Kh8 {[%clk 0:00:32.3]} 48. Qxb7 {[%clk 0:00:04.8]}
48... Rd8 {[%clk 0:00:32.4]} 49. Qxa7 {[%clk 0:00:04.9]} 49... Rxd3+ {[%clk
0:00:32.4]} 50. Ke2 {[%clk 0:00:05.6]} 50... Rd7 {[%clk 0:00:28]} 51. Qxd7
{[%clk 0:00:04.5]} 51... Bf7 {[%clk 0:00:28.8]} 52. Qe7 {[%clk 0:00:04.3]} 52...
Kg8 {[%clk 0:00:28.4]} 53. Ke3 {[%clk 0:00:04.9]} 53... Kh8 {[%clk 0:00:28.4]}
54. Qf6+ {[%clk 0:00:05.6]} 54... Kg8 {[%clk 0:00:28.6]} 55. Qg7# {[%clk
0:00:06.5]} 1-0

[Event "Early-Titled-Tuesday-Blitz-April-02-2024"]
[Site "Chess.com"]
[Date "2024.04.02"]
[Round "10"]
[White "AccioChess"]
[Black "Irina_Mikhaylova"]
[Result "0-1"]
[WhiteElo "2443"]
[BlackElo "2355"]
[TimeControl "180+1"]
[EndTime "9:56:54 PDT"]
[Termination "Irina_Mikhaylova won on time"]

1. e4 {[%clk 0:02:56.1]} 1... c5 {[%clk 0:03:00]} 2. Nf3 {[%clk 0:02:55.4]} 2...
Nc6 {[%clk 0:03:00.4]} 3. c3 {[%clk 0:02:49.4]} 3... d5 {[%clk 0:02:59.4]} 4.
exd5 {[%clk 0:02:49]} 4... Qxd5 {[%clk 0:03:00]} 5. d4 {[%clk 0:02:49.2]} 5...
Bg4 {[%clk 0:02:59.7]} 6. dxc5 {[%clk 0:02:47]} 6... Qxc5 {[%clk 0:02:59.4]} 7.
Be3 {[%clk 0:02:45.5]} 7... Qa5 {[%clk 0:02:58.6]} 8. Nbd2 {[%clk 0:02:45.5]}
8... Bd7 {[%clk 0:02:56.4]} 9. Bc4 {[%clk 0:02:40.5]} 9... e6 {[%clk 0:02:54]}
10. O-O {[%clk 0:02:39.5]} 10... Nf6 {[%clk 0:02:53.9]} 11. Qe2 {[%clk
0:02:26.6]} 11... Be7 {[%clk 0:02:51.9]} 12. Rad1 {[%clk 0:02:21]} 12... O-O
{[%clk 0:02:51.6]} 13. Nb3 {[%clk 0:02:19.8]} 13... Qc7 {[%clk 0:02:50.9]} 14.
Nbd4 {[%clk 0:02:11.5]} 14... a6 {[%clk 0:02:42.9]} 15. Bb3 {[%clk 0:02:08]}
15... Rfd8 {[%clk 0:02:39]} 16. Rfe1 {[%clk 0:02:05.7]} 16... b5 {[%clk
0:02:35.1]} 17. h3 {[%clk 0:01:58.3]} 17... Rac8 {[%clk 0:02:34.3]} 18. Bg5
{[%clk 0:01:45.6]} 18... h6 {[%clk 0:02:18.2]} 19. Bh4 {[%clk 0:01:45.3]} 19...
Nxd4 {[%clk 0:02:01.8]} 20. Nxd4 {[%clk 0:01:43.4]} 20... Nd5 {[%clk 0:02:00]}
21. Bxe7 {[%clk 0:01:38.8]} 21... Nxe7 {[%clk 0:01:59.6]} 22. Nf3 {[%clk
0:01:27.1]} 22... Bc6 {[%clk 0:01:06.2]} 23. Ne5 {[%clk 0:01:25.5]} 23... Bd5
{[%clk 0:00:56.1]} 24. Bc2 {[%clk 0:01:24.9]} 24... f6 {[%clk 0:00:49.4]} 25.
Ng4 {[%clk 0:01:17.1]} 25... Bc4 {[%clk 0:00:42.7]} 26. Qf3 {[%clk 0:00:57.5]}
26... Rxd1 {[%clk 0:00:40.7]} 27. Rxd1 {[%clk 0:00:58.4]} 27... Rd8 {[%clk
0:00:41.1]} 28. b3 {[%clk 0:00:47.4]} 28... Rxd1+ {[%clk 0:00:37.8]} 29. Qxd1
{[%clk 0:00:47.2]} 29... Bd5 {[%clk 0:00:38.2]} 30. Qd3 {[%clk 0:00:47.5]} 30...
Kf7 {[%clk 0:00:27.3]} 31. Ne3 {[%clk 0:00:40.2]} 31... Qe5 {[%clk 0:00:22.1]}
32. a4 {[%clk 0:00:33.5]} 32... Bc6 {[%clk 0:00:21.5]} 33. axb5 {[%clk
0:00:32.9]} 33... axb5 {[%clk 0:00:20.9]} 34. c4 {[%clk 0:00:32.4]} 34... bxc4
{[%clk 0:00:21.1]} 35. Nxc4 {[%clk 0:00:32.4]} 35... Qd5 {[%clk 0:00:20.6]} 36.
Qg3 {[%clk 0:00:31]} 36... Nf5 {[%clk 0:00:20]} 37. Bxf5 {[%clk 0:00:29.3]}
37... exf5 {[%clk 0:00:20.8]} 38. Ne3 {[%clk 0:00:19.7]} 38... Qe4 {[%clk
0:00:20]} 39. Qc7+ {[%clk 0:00:10.5]} 39... Kg6 {[%clk 0:00:20.4]} 40. Qc8
{[%clk 0:00:02.5]} 40... f4 {[%clk 0:00:16.1]} 41. Qg4+ {[%clk 0:00:02.4]} 41...
Kh7 {[%clk 0:00:13.5]} 42. Qf5+ {[%clk 0:00:02.4]} 42... Qxf5 {[%clk 0:00:13.3]}
43. Nxf5 {[%clk 0:00:03.3]} 43... f3 {[%clk 0:00:12.2]} 44. Nd4 {[%clk
0:00:02.8]} 44... Bd5 {[%clk 0:00:11.2]} 45. gxf3 {[%clk 0:00:03.1]} 45... g5
{[%clk 0:00:11.1]} 46. b4 {[%clk 0:00:03.3]} 46... Kg6 {[%clk 0:00:11.4]} 47. b5
{[%clk 0:00:03.7]} 47... f5 {[%clk 0:00:11.6]} 48. b6 {[%clk 0:00:03.9]} 48...
Kf6 {[%clk 0:00:12.1]} 0-1

[Event "Early-Titled-Tuesday-Blitz-April-02-2024"]
[Site "Chess.com"]
[Date "2024.04.02"]
[Round "10"]
[White "Orest_Vovk"]
[Black "Fengwi"]
[Result "1/2-1/2"]
[WhiteElo "2550"]
[BlackElo "2398"]
[TimeControl "180+1"]
[EndTime "9:56:55 PDT"]
[Termination "Game drawn - insufficient material"]

1. Nc3 {[%clk 0:02:54.1]} 1... d5 {[%clk 0:02:58]} 2. e4 {[%clk 0:02:54.3]} 2...
d4 {[%clk 0:02:51.3]} 3. Nce2 {[%clk 0:02:54.8]} 3... e5 {[%clk 0:02:49.9]} 4.
Ng3 {[%clk 0:02:55.4]} 4... Be6 {[%clk 0:02:49.2]} 5. Nf3 {[%clk 0:02:55.1]}
5... f6 {[%clk 0:02:49.1]} 6. Nxe5 {[%clk 0:02:55.7]} 6... fxe5 {[%clk
0:02:48.6]} 7. Qh5+ {[%clk 0:02:56.3]} 7... Bf7 {[%clk 0:02:40.3]} 8. Qxe5+
{[%clk 0:02:57.2]} 8... Ne7 {[%clk 0:02:32.1]} 9. Nf5 {[%clk 0:02:55.3]} 9...
Nd7 {[%clk 0:02:22.6]} 10. Nxg7+ {[%clk 0:02:53]} 10... Bxg7 {[%clk 0:02:22]}
11. Qxg7 {[%clk 0:02:53.9]} 11... Rg8 {[%clk 0:02:20.1]} 12. Qxh7 {[%clk
0:02:54.1]} 12... Nf6 {[%clk 0:02:20]} 13. Qh6 {[%clk 0:02:41.3]} 13... Nxe4
{[%clk 0:02:09]} 14. d3 {[%clk 0:02:41]} 14... Nd6 {[%clk 0:01:59.1]} 15. Bg5
{[%clk 0:02:33.2]} 15... Ndf5 {[%clk 0:01:58.5]} 16. Qf6 {[%clk 0:02:31.3]}
16... Rg6 {[%clk 0:01:51.1]} 17. Qxf5 {[%clk 0:02:27]} 17... Nxf5 {[%clk
0:01:49.7]} 18. Bxd8 {[%clk 0:02:26.9]} 18... Rxd8 {[%clk 0:01:50]} 19. Kd2
{[%clk 0:02:22]} 19... Nh4 {[%clk 0:01:41.8]} 20. Re1+ {[%clk 0:02:16.3]} 20...
Kf8 {[%clk 0:01:40.5]} 21. Re5 {[%clk 0:01:52.6]} 21... Nxg2 {[%clk 0:01:33.1]}
22. h4 {[%clk 0:01:52.5]} 22... Nf4 {[%clk 0:01:23.7]} 23. h5 {[%clk 0:01:52.4]}
23... Rh6 {[%clk 0:01:19.4]} 24. Rf5 {[%clk 0:01:50.9]} 24... Ne6 {[%clk
0:01:09.6]} 25. Bg2 {[%clk 0:01:50.1]} 25... Ng7 {[%clk 0:01:01.8]} 26. Ra5
{[%clk 0:01:49.1]} 26... Rxh5 {[%clk 0:00:59.1]} 27. Rhxh5 {[%clk 0:01:48.7]}
27... Nxh5 {[%clk 0:00:58.1]} 28. Rxa7 {[%clk 0:01:48.5]} 28... Nf4 {[%clk
0:00:49.8]} 29. Bxb7 {[%clk 0:01:47.8]} 29... Bh5 {[%clk 0:00:45.7]} 30. Be4
{[%clk 0:01:42.7]} 30... c5 {[%clk 0:00:40]} 31. a4 {[%clk 0:01:37.6]} 31... Bf7
{[%clk 0:00:27.3]} 32. Rc7 {[%clk 0:01:31]} 32... Ne6 {[%clk 0:00:18.2]} 33. Rc6
{[%clk 0:01:31.2]} 33... Ke7 {[%clk 0:00:16.3]} 34. a5 {[%clk 0:01:30.9]} 34...
Be8 {[%clk 0:00:16.3]} 35. Rb6 {[%clk 0:01:27.8]} 35... Ng5 {[%clk 0:00:13.5]}
36. Bb7 {[%clk 0:01:23.3]} 36... Bh5 {[%clk 0:00:10.9]} 37. f4 {[%clk
0:01:20.3]} 37... Nf3+ {[%clk 0:00:10.1]} 38. Bxf3 {[%clk 0:01:15]} 38... Bxf3
{[%clk 0:00:11]} 39. f5 {[%clk 0:01:10.2]} 39... Ra8 {[%clk 0:00:10.4]} 40. f6+
{[%clk 0:01:08.7]} 40... Kf7 {[%clk 0:00:09.7]} 41. a6 {[%clk 0:01:09.6]} 41...
Bd5 {[%clk 0:00:05.3]} 42. Rb5 {[%clk 0:01:01.4]} 42... Rxa6 {[%clk 0:00:03.8]}
43. Rxc5 {[%clk 0:01:01.7]} 43... Rd6 {[%clk 0:00:04.5]} 44. b4 {[%clk
0:00:57.5]} 44... Kxf6 {[%clk 0:00:04.3]} 45. b5 {[%clk 0:00:58]} 45... Ke5
{[%clk 0:00:03.4]} 46. Kc1 {[%clk 0:00:58.6]} 46... Rb6 {[%clk 0:00:03.1]} 47.
Kb2 {[%clk 0:00:58.3]} 47... Kd6 {[%clk 0:00:03.7]} 48. Rc8 {[%clk 0:00:58.3]}
48... Rxb5+ {[%clk 0:00:04]} 49. Kc1 {[%clk 0:00:59]} 49... Bc6 {[%clk
0:00:03.3]} 50. Rd8+ {[%clk 0:00:59.2]} 50... Kc5 {[%clk 0:00:03]} 51. Kd2
{[%clk 0:00:59]} 51... Rb7 {[%clk 0:00:03.4]} 52. Rh8 {[%clk 0:00:56.8]} 52...
Rg7 {[%clk 0:00:03.7]} 53. Kc1 {[%clk 0:00:56.4]} 53... Rg2 {[%clk 0:00:03.4]}
54. Kb2 {[%clk 0:00:55.2]} 54... Ba4 {[%clk 0:00:02.6]} 55. Rc8+ {[%clk
0:00:55.8]} 55... Kd6 {[%clk 0:00:01.9]} 56. Rc4 {[%clk 0:00:56.7]} 56... Bb5
{[%clk 0:00:01.2]} 57. Rxd4+ {[%clk 0:00:56.9]} 57... Kc5 {[%clk 0:00:01.9]} 58.
Rf4 {[%clk 0:00:57.1]} 58... Bxd3 {[%clk 0:00:01.9]} 59. Kc3 {[%clk 0:00:56.8]}
59... Bxc2 {[%clk 0:00:01.8]} 60. Rc4+ {[%clk 0:00:55.9]} 60... Kd5 {[%clk
0:00:01.7]} 61. Rd4+ {[%clk 0:00:56.6]} 61... Ke5 {[%clk 0:00:01.8]} 62. Rd8
{[%clk 0:00:57.5]} 62... Be4 {[%clk 0:00:02]} 63. Kb4 {[%clk 0:00:58.4]} 63...
Kf4 {[%clk 0:00:02.6]} 64. Rf8+ {[%clk 0:00:58.6]} 64... Ke3 {[%clk 0:00:03.5]}
65. Kc4 {[%clk 0:00:59]} 65... Rc2+ {[%clk 0:00:03.7]} 66. Kb3 {[%clk 0:00:59]}
66... Rc7 {[%clk 0:00:03.5]} 67. Rh8 {[%clk 0:00:58.4]} 67... Kd4 {[%clk
0:00:03.9]} 68. Rd8+ {[%clk 0:00:57.8]} 68... Bd5+ {[%clk 0:00:03.5]} 69. Kb2
{[%clk 0:00:57.7]} 69... Rb7+ {[%clk 0:00:02.8]} 70. Kc1 {[%clk 0:00:56.9]}
70... Rh7 {[%clk 0:00:03.3]} 71. Kb2 {[%clk 0:00:56.8]} 71... Rh2+ {[%clk
0:00:03]} 72. Kc1 {[%clk 0:00:57.1]} 72... Kc3 {[%clk 0:00:02.8]} 73. Rxd5
{[%clk 0:00:55.7]} 73... Rh1+ {[%clk 0:00:03.2]} 74. Rd1 {[%clk 0:00:55.8]}
74... Rxd1+ {[%clk 0:00:04.1]} 75. Kxd1 {[%clk 0:00:55.9]} 1/2-1/2